fUST/lending_fUST_20240517
["ID","MTS","AMOUNT","RATE_DAILY","PERIOD"]
[327212416,1715901040240,-1650.43,0.00016438,2]
[327212418,1715901040251,-500.0,0.00016438,2]
[327212420,1715901040262,-500.0,0.00016438,2]
[327212422,1715901040272,-500.0,0.00016438,2]
[327212424,1715901040282,-649.71,0.00016438,2]
[327212426,1715901040291,-583.5,0.00016438,2]
[327212429,1715901040301,-500.0,0.00016438,2]
[327212431,1715901040311,-500.0,0.00016438,2]
[327212432,1715901040320,-676.35,0.00016438,2]
[327212435,1715901040329,-500.0,0.00016438,2]
[327212437,1715901040339,-500.0,0.00016438,2]
[327212439,1715901040348,-500.0,0.00016438,2]
[327212441,1715901040358,-500.0,0.00016438,2]
[327212442,1715901040367,-500.0,0.00016438,2]
[327212444,1715901040376,-976.71,0.00016438,2]
[327212447,1715901040386,-500.0,0.00016438,2]
[327212448,1715901040395,-500.0,0.00016438,2]
[327212450,1715901040405,-500.0,0.00016438,2]
[327212452,1715901040414,-677.49,0.00016438,2]
[327212454,1715901040423,-500.0,0.00016438,2]
[327212456,1715901040432,-191.43358073,0.00016438,2]
[327212479,1715901040629,-308.56641927,0.00016438,2]
[327212481,1715901040639,-500.0,0.00016438,2]
[327212483,1715901040649,-1168.1,0.00016438,2]
[327212485,1715901040658,-871.05,0.00016438,2]
[327212487,1715901040668,-500.0,0.00016438,2]
[327212489,1715901040677,-500.0,0.00016438,2]
[327212490,1715901040687,-500.0,0.00016438,2]
[327212491,1715901040696,-1609.31,0.00016438,2]
[327212492,1715901040705,-500.0,0.00016438,2]
[327212493,1715901040714,-771.82,0.00016438,2]
[327212494,1715901040724,-1123.92,0.00016438,2]
[327212495,1715901040733,-500.0,0.00016438,2]
[327212496,1715901040743,-500.0,0.00016438,2]
[327212497,1715901040754,-500.0,0.00016438,2]
[327212498,1715901040763,-2247.15,0.00016438,2]
[327212499,1715901040773,-500.0,0.00016438,2]
[327212500,1715901040783,-1417.53,0.00016438,2]
[327212501,1715901040793,-3804.41,0.00016438,2]
[327212502,1715901040802,-500.0,0.00016438,2]
[327212503,1715901040812,-500.0,0.00016438,2]
[327212504,1715901040821,-500.0,0.00016438,2]
[327212505,1715901040831,-500.0,0.00016438,2]
[327212506,1715901040840,-500.0,0.00016438,2]
[327212507,1715901040850,-500.0,0.00016438,2]
[327212508,1715901040860,-500.0,0.00016438,2]
[327212509,1715901040869,-500.0,0.00016438,2]
[327212510,1715901040879,-500.0,0.00016438,2]
[327212511,1715901040888,-500.0,0.00016438,2]
[327212512,1715901040898,-500.0,0.00016438,2]
[327212513,1715901040908,-500.0,0.00016438,2]
[327212515,1715901040917,-500.0,0.00016438,2]
[327212517,1715901040927,-1095.48,0.00016438,2]
[327212519,1715901040936,-500.0,0.00016438,2]
[327212521,1715901040946,-758.48,0.00016438,2]
[327212523,1715901040955,-1565.33,0.00016438,2]
[327212525,1715901040965,-1840.36,0.00016438,2]
[327212527,1715901040974,-719.58,0.00016438,2]
[327212529,1715901040984,-500.0,0.00016438,2]
[327212531,1715901040993,-500.0,0.00016438,2]
[327212533,1715901041004,-500.0,0.00016438,2]
[327212535,1715901041013,-500.0,0.00016438,2]
[327212537,1715901041023,-741.55,0.00016438,2]
[327212539,1715901041032,-500.0,0.00016438,2]
[327212541,1715901041041,-500.0,0.00016438,2]
[327212543,1715901041051,-500.0,0.00016438,2]
[327212545,1715901041061,-991.85,0.00016438,2]
[327212547,1715901041070,-500.0,0.00016438,2]
[327212549,1715901041080,-500.0,0.00016438,2]
[327212551,1715901041089,-500.0,0.00016438,2]
[327212553,1715901041099,-621.75853821,0.00016438,2]
[327212555,1715901041109,-500.0,0.00016438,2]
[327212557,1715901041118,-1356.77,0.00016438,2]
[327212559,1715901041127,-1048.71,0.00016438,2]
[327212561,1715901041136,-2782.99,0.00016438,2]
[327212563,1715901041146,-847.82,0.00016438,2]
[327212565,1715901041158,-500.0,0.00016438,2]
[327212567,1715901041170,-592.52755287,0.00016438,2]
[327212569,1715901041180,-500.0,0.00016438,2]
[327212571,1715901041190,-500.0,0.00016438,2]
[327212573,1715901041199,-2320.68,0.00016438,2]
[327212575,1715901041210,-500.0,0.00016438,2]
[327212577,1715901041220,-500.0,0.00016438,2]
[327212579,1715901041230,-1142.03,0.00016438,2]
[327212581,1715901041242,-500.0,0.00016438,2]
[327212583,1715901041253,-151.0,0.00016438,2]
[327212585,1715901041261,-228.752964,0.00016438,2]
[327212587,1715901041270,-1103.39,0.00016438,2]
[327212590,1715901041279,-500.0,0.00016438,2]
[327212593,1715901041288,-566.09,0.00016438,2]
[327212596,1715901041297,-25799.25,0.00016438,2]
[327212599,1715901041306,-6402.79,0.00016438,2]
[327212601,1715901041316,-714.78,0.00016438,2]
[327212603,1715901041325,-500.0,0.00016438,2]
[327212605,1715901041334,-500.0,0.00016438,2]
[327212607,1715901041343,-500.0,0.00016438,2]
[327212609,1715901041352,-2370.31,0.00016438,2]
[327212611,1715901041361,-500.0,0.00016438,2]
[327212613,1715901041372,-11246.07,0.00016438,2]
[327212615,1715901041381,-178.24529411,0.00016438,2]
[327212617,1715901041390,-500.0,0.00016438,2]
[327212619,1715901041399,-500.0,0.00016438,2]
[327212621,1715901041408,-500.0,0.00016438,2]
[327212623,1715901041417,-3061.01,0.00016438,2]
[327212625,1715901041426,-500.0,0.00016438,2]
[327212627,1715901041435,-500.0,0.00016438,2]
[327212629,1715901041444,-242.6895253,0.00016438,2]
[327212631,1715901041453,-992.3,0.00016438,2]
[327212633,1715901041463,-151.0,0.00016438,2]
[327212635,1715901041472,-151.0,0.00016438,2]
[327212637,1715901041481,-151.0,0.00016438,2]
[327212639,1715901041490,-151.0,0.00016438,2]
[327212640,1715901041499,-151.0,0.00016438,2]
[327212643,1715901041509,-5923.72,0.00016438,2]
[327212645,1715901041519,-710.05,0.00016438,2]
[327212647,1715901041528,-1117.78,0.00016438,2]
[327212649,1715901041538,-1160.18,0.00016438,2]
[327212651,1715901041547,-453.432456,0.00016438,2]
[327212653,1715901041556,-453.432456,0.00016438,2]
[327212655,1715901041566,-453.432456,0.00016438,2]
[327212657,1715901041575,-453.432456,0.00016438,2]
[327212659,1715901041585,-453.432456,0.00016438,2]
[327212661,1715901041594,-453.432456,0.00016438,2]
[327212663,1715901041604,-453.432456,0.00016438,2]
[327212665,1715901041614,-453.432456,0.00016438,2]
[327212667,1715901041623,-453.432456,0.00016438,2]
[327212669,1715901041632,-453.432456,0.00016438,2]
[327212671,1715901041640,-151.0,0.00016438,2]
[327212673,1715901041649,-151.0,0.00016438,2]
[327212675,1715901041659,-151.0,0.00016438,2]
[327212677,1715901041668,-151.0,0.00016438,2]
[327212679,1715901041677,-500.0,0.00016438,2]
[327212681,1715901041687,-611.4,0.00016438,2]
[327212683,1715901041696,-151.0,0.00016438,2]
[327212684,1715901041705,-1548.86,0.00016438,2]
[327212705,1715901041879,-278.3292504,0.00016438,2]
[327212707,1715901041889,-270.05304,0.00016438,2]
[327212709,1715901041899,-270.05304,0.00016438,2]
[327212711,1715901041909,-270.05304,0.00016438,2]
[327212713,1715901041918,-500.0,0.00016438,2]
[327212715,1715901041928,-270.05304,0.00016438,2]
[327212717,1715901041937,-270.05304,0.00016438,2]
[327212719,1715901041947,-270.05304,0.00016438,2]
[327212721,1715901041956,-151.0,0.00016438,2]
[327212723,1715901041966,-151.0,0.00016438,2]
[327212725,1715901041976,-151.0,0.00016438,2]
[327212727,1715901041986,-151.0,0.00016438,2]
[327212729,1715901041995,-151.0,0.00016438,2]
[327212731,1715901042005,-151.0,0.00016438,2]
[327212733,1715901042014,-151.0,0.00016438,2]
[327212735,1715901042024,-151.0,0.00016438,2]
[327212737,1715901042034,-274.0226886,0.000165,2]
[327212739,1715901042043,-327.0,0.00016587,2]
[327212741,1715901042052,-150.0,0.00016587,2]
[327212743,1715901042061,-306.0,0.000166,2]
[327212745,1715901042070,-199.150319,0.00016711,2]
[327212747,1715901042080,-495.0,0.00016712,2]
[327212749,1715901042090,-500.0,0.00016712,2]
[327212751,1715901042099,-500.0,0.00016712,2]
[327212753,1715901042108,-647.37492551,0.00016712,2]
[327212755,1715901042118,-500.0,0.00016712,2]
[327212757,1715901042127,-500.0,0.00016712,2]
[327212759,1715901042136,-500.0,0.00016712,2]
[327212760,1715901042146,-301.70867553,0.00016712,2]
[327212762,1715901042156,-500.0,0.00016712,2]
[327212764,1715901042170,-500.0,0.00016712,2]
[327212766,1715901042180,-500.0,0.00016712,2]
[327212768,1715901042189,-513.97344827,0.00016712,2]
[327212770,1715901042198,-618.79,0.00016712,2]
[327212772,1715901042208,-587.77,0.00016712,2]
[327212775,1715901042218,-500.0,0.00016712,2]
[327212777,1715901042228,-500.0,0.00016712,2]
[327212779,1715901042238,-500.0,0.00016712,2]
[327212781,1715901042249,-1204.08,0.00016712,2]
[327212783,1715901042259,-643.13,0.00016712,2]
[327212784,1715901042269,-890.28,0.00016712,2]
[327212786,1715901042279,-512.25,0.00016712,2]
[327212788,1715901042288,-1048.19,0.00016712,2]
[327212790,1715901042297,-325.85498203,0.00016712,2]
[327212793,1715901042311,-174.14501797,0.00016712,2]
[327212795,1715901042320,-500.0,0.00016712,2]
[327212797,1715901042330,-500.0,0.00016712,2]
[327212799,1715901042339,-651.6,0.00016712,2]
[327212801,1715901042348,-500.0,0.00016712,2]
[327212803,1715901042358,-500.0,0.00016712,2]
[327212805,1715901042367,-500.0,0.00016712,2]
[327212807,1715901042376,-500.0,0.00016712,2]
[327212809,1715901042385,-500.0,0.00016712,2]
[327212811,1715901042394,-500.0,0.00016712,2]
[327212813,1715901042403,-799.67,0.00016712,2]
[327212815,1715901042413,-500.0,0.00016712,2]
[327212817,1715901042422,-500.0,0.00016712,2]
[327212819,1715901042431,-500.0,0.00016712,2]
[327212821,1715901042440,-500.0,0.00016712,2]
[327212823,1715901042449,-923.45,0.00016712,2]
[327212825,1715901042458,-500.0,0.00016712,2]
[327212827,1715901042467,-151.0,0.00016712,2]
[327212829,1715901042476,-100.67019597,0.00016712,2]
[327212831,1715901042489,-50.32980403,0.00016712,2]
[327212833,1715901042498,-151.0,0.00016712,2]
[327212835,1715901042508,-151.0,0.00016712,2]
[327212837,1715901042518,-151.0,0.00016712,2]
[327212839,1715901042527,-151.0,0.00016712,2]
[327212841,1715901042537,-500.0,0.00016712,2]
[327212843,1715901042546,-151.0,0.00016712,2]
[327212845,1715901042555,-3.65435639,0.00016712,2]
[327212850,1715901042594,-147.34564361,0.00016712,2]
[327212853,1715901042605,-151.0,0.00016712,2]
[327212855,1715901042614,-17.35365581,0.00016712,2]
[327213007,1715901044479,-133.64634419,0.00016712,2]
[327213008,1715901044488,-240.331312,0.00016712,2]
[327213009,1715901044497,-117.23345088,0.00016712,2]
[327213011,1715901044679,-500.0,0.00016438,2]
[327213013,1715901044689,-382.76654912,0.00016712,2]
[327213015,1715901044698,-500.0,0.00016712,2]
[327213017,1715901044707,-1650.43,0.00016712,2]
[327213019,1715901044716,-500.0,0.00016712,2]
[327213021,1715901044725,-500.0,0.00016712,2]
[327213023,1715901044734,-649.71,0.00016712,2]
[327213025,1715901044744,-583.5,0.00016712,2]
[327213027,1715901044754,-500.0,0.00016712,2]
[327213029,1715901044763,-500.0,0.00016712,2]
[327213031,1715901044772,-676.35,0.00016712,2]
[327213033,1715901044781,-456.11207285,0.00016712,2]
[327213035,1715901044790,-500.0,0.00016712,2]
[327213037,1715901044799,-500.0,0.00016712,2]
[327213039,1715901044808,-500.0,0.00016712,2]
[327213041,1715901044818,-976.71,0.00016712,2]
[327213043,1715901044827,-500.0,0.00016712,2]
[327213045,1715901044836,-153.68391034,0.00016712,2]
[327214777,1715901193589,1137.6236091,9.999e-05,2]
[327214778,1715901276030,877.27905048,0.00014792,2]
[327214781,1715901624446,1137.6236091,9.999e-05,2]
[327214783,1715901710151,269.205655,0.00014967,2]
[327214784,1715901715415,678.4395681,0.00014967,2]
[327214785,1715901960422,5485.7956276,0.00014951,2]
[327214786,1715902046162,-710.90455551,0.0001513,2]
[327214787,1715902046183,-2932.85522602,0.00015131,2]
[327214788,1715902154104,-21967.14477398,0.00015131,2]
[327214856,1715902232339,-516.20767634,0.00015311,2]
[327215454,1715902238341,-561.95005024,0.00015311,2]
[327215456,1715902238351,-269.205655,0.00015412,2]
[327215458,1715902238361,-2450.7701248,0.00015464,2]
[327215460,1715902238372,-356.13733549,0.00016338,2]
[327215462,1715902238382,-238.60242952,0.00016436,2]
[327215464,1715902238392,-307.27495146,0.00016437,2]
[327215466,1715902238401,-500.0,0.00016438,2]
[327215468,1715902238411,-500.0,0.00016438,2]
[327215470,1715902238421,-816.09,0.00016438,2]
[327215472,1715902238431,-500.0,0.00016438,2]
[327215474,1715902238440,-500.0,0.00016438,2]
[327215476,1715902238450,-500.0,0.00016438,2]
[327215478,1715902238460,-500.0,0.00016438,2]
[327215480,1715902238469,-597.3,0.00016438,2]
[327215482,1715902238479,-239.70033723,0.00016438,2]
[327215484,1715902238489,-500.0,0.00016438,2]
[327215486,1715902238498,-500.0,0.00016438,2]
[327215488,1715902238508,-592.18819026,0.00016438,2]
[327215490,1715902238520,-500.0,0.00016438,2]
[327215492,1715902238530,-595.57,0.00016438,2]
[327215494,1715902238541,-277.12287442,0.00016438,2]
[327215496,1715902238550,-500.0,0.00016438,2]
[327215498,1715902238561,-1484.33,0.00016438,2]
[327215500,1715902238570,-621.52,0.00016438,2]
[327215502,1715902238580,-500.0,0.00016438,2]
[327215504,1715902238592,-500.0,0.00016438,2]
[327215506,1715902238601,-500.0,0.00016438,2]
[327215508,1715902238611,-290.01,0.00016438,2]
[327215510,1715902238620,-515.97,0.00016438,2]
[327215512,1715902238630,-500.0,0.00016438,2]
[327215513,1715902238640,-589.54,0.00016438,2]
[327215515,1715902238650,-500.0,0.00016438,2]
[327215517,1715902238660,-1185.24,0.00016438,2]
[327215519,1715902238670,-500.0,0.00016438,2]
[327215521,1715902238679,-500.0,0.00016438,2]
[327215523,1715902238690,-500.0,0.00016438,2]
[327215525,1715902238700,-500.0,0.00016438,2]
[327215527,1715902238710,-500.0,0.00016438,2]
[327215529,1715902238720,-279.93723579,0.00016438,2]
[327215531,1715902238729,-1070.66,0.00016438,2]
[327215533,1715902238739,-500.0,0.00016438,2]
[327215535,1715902238749,-500.0,0.00016438,2]
[327215537,1715902238758,-500.0,0.00016438,2]
[327215539,1715902238768,-943.25,0.00016438,2]
[327215541,1715902238778,-500.0,0.00016438,2]
[327215543,1715902238789,-733.03,0.00016438,2]
[327215546,1715902238800,-500.0,0.00016438,2]
[327215548,1715902238810,-500.0,0.00016438,2]
[327215550,1715902238820,-500.0,0.00016438,2]
[327215552,1715902238829,-500.0,0.00016438,2]
[327215553,1715902238839,-500.0,0.00016438,2]
[327215555,1715902238849,-1512.9,0.00016438,2]
[327215557,1715902238859,-500.0,0.00016438,2]
[327215559,1715902238869,-500.0,0.00016438,2]
[327215561,1715902238878,-534.88,0.00016438,2]
[327215564,1715902238888,-500.0,0.00016438,2]
[327215565,1715902238898,-500.0,0.00016438,2]
[327215567,1715902238907,-500.0,0.00016438,2]
[327215569,1715902238917,-500.0,0.00016438,2]
[327215572,1715902238927,-500.0,0.00016438,2]
[327215573,1715902238937,-678.72,0.00016438,2]
[327215575,1715902238947,-500.0,0.00016438,2]
[327215577,1715902238956,-500.0,0.00016438,2]
[327215580,1715902238966,-6420.71,0.00016438,2]
[327215581,1715902238976,-895.31,0.00016438,2]
[327215584,1715902238985,-24724.28,0.00016438,2]
[327215586,1715902238995,-500.0,0.00016438,2]
[327215588,1715902239006,-1119.43,0.00016438,2]
[327215590,1715902239019,-607.56289489,0.00016438,2]
[327215592,1715902239030,-1111.84,0.00016438,2]
[327215594,1715902239041,-500.0,0.00016438,2]
[327215596,1715902239052,-619.99,0.00016438,2]
[327215598,1715902239063,-542.51,0.00016438,2]
[327215600,1715902239074,-500.0,0.00016438,2]
[327215602,1715902239084,-500.0,0.00016438,2]
[327215604,1715902239095,-500.0,0.00016438,2]
[327215606,1715902239106,-500.0,0.00016438,2]
[327215607,1715902239116,-500.0,0.00016438,2]
[327215609,1715902239127,-500.0,0.00016438,2]
[327215611,1715902239137,-1077.09,0.00016438,2]
[327215613,1715902239149,-500.0,0.00016438,2]
[327215615,1715902239159,-1049.83,0.00016438,2]
[327215617,1715902239170,-486.30796986,0.00016438,2]
[327215620,1715902239184,-13.69203014,0.00016438,2]
[327215622,1715902239195,-950.96,0.00016438,2]
[327215624,1715902239205,-739.67,0.00016438,2]
[327215626,1715902239217,-500.0,0.00016438,2]
[327215628,1715902239228,-680.46,0.00016438,2]
[327215630,1715902239239,-500.0,0.00016438,2]
[327215632,1715902239249,-500.0,0.00016438,2]
[327215634,1715902239260,-500.0,0.00016438,2]
[327215636,1715902239271,-500.0,0.00016438,2]
[327215638,1715902239281,-500.0,0.00016438,2]
[327215640,1715902239292,-500.0,0.00016438,2]
[327215642,1715902239302,-500.0,0.00016438,2]
[327215644,1715902239312,-500.0,0.00016438,2]
[327215646,1715902239323,-500.0,0.00016438,2]
[327215648,1715902239334,-626.06,0.00016438,2]
[327215650,1715902239345,-500.0,0.00016438,2]
[327215652,1715902239356,-1542.26,0.00016438,2]
[327215654,1715902239366,-500.0,0.00016438,2]
[327215655,1715902239377,-500.0,0.00016438,2]
[327215657,1715902239387,-500.0,0.00016438,2]
[327215659,1715902239399,-726.88,0.00016438,2]
[327215661,1715902239409,-414.13085952,0.00016438,2]
[327215664,1715902239422,-85.86914048,0.00016438,2]
[327215666,1715902239433,-500.0,0.00016438,2]
[327215668,1715902239443,-693.85729568,0.00016438,2]
[327215785,1715902240745,-469.5,0.00016438,2]
[327216123,1715902244684,-533.58561713,0.00016438,2]
[327219950,1715902408301,564.0,0.000266,120]
[327219953,1715903253174,-177.622957,0.00015174,2]
[327219954,1715903253193,-1450.07697924,0.00015411,2]
[327219955,1715903253212,-409.51691661,0.00015412,2]
[327219993,1715903432018,-24900.0,0.00015345,2]
[327219995,1715903432028,-425.37578302,0.00015412,2]
[327219997,1715903432037,-157.27495146,0.00015657,2]
[327219999,1715903432046,-1000.0,0.00016007,2]
[327220001,1715903432055,-2364.100484,0.00016296,2]
[327220003,1715903432065,-311.62016858,0.00016338,2]
[327220005,1715903432076,-532.39916493,0.00016371,2]
[327220007,1715903432085,-237.00132726,0.00016437,2]
[327220009,1715903432094,-1348.9853103,0.00016438,3]
[327220011,1715903432103,-500.0,0.00016438,2]
[327220013,1715903432112,-500.0,0.00016438,2]
[327220015,1715903432121,-500.0,0.00016438,2]
[327220017,1715903432131,-500.0,0.00016438,2]
[327220019,1715903432140,-500.0,0.00016438,2]
[327220021,1715903432149,-595.62,0.00016438,2]
[327220022,1715903432158,-500.0,0.00016438,2]
[327220024,1715903432167,-500.0,0.00016438,2]
[327220026,1715903432178,-1135.85,0.00016438,2]
[327220028,1715903432187,-500.0,0.00016438,2]
[327220030,1715903432196,-500.0,0.00016438,2]
[327220032,1715903432205,-500.0,0.00016438,2]
[327220034,1715903432214,-500.0,0.00016438,2]
[327220036,1715903432223,-500.0,0.00016438,2]
[327220038,1715903432232,-500.0,0.00016438,2]
[327220040,1715903432241,-175.85723024,0.00016438,2]
[327220050,1715903432328,-324.14276976,0.00016438,2]
[327220051,1715903432337,-1026.05,0.00016438,2]
[327220053,1715903432347,-564.97,0.00016438,2]
[327220055,1715903432356,-14.2808895,0.00016438,2]
[327220569,1715903438047,-254.5390449,0.00016438,2]
[327220676,1715903439969,1000.0,9.823e-05,2]
[327220683,1715903440375,-231.1800656,0.00016438,2]
[327220685,1715903440385,-500.0,0.00016438,2]
[327220686,1715903440395,-500.0,0.00016438,2]
[327220687,1715903440404,-768.8199344,0.00016438,2]
[327224615,1715903530073,1831.98745756,9.999e-05,2]
[327224616,1715903530101,764.47078192,9.999e-05,2]
[327224617,1715903604550,208.72073891,9.999e-05,2]
[327224618,1715903606911,19232.33594967,9.999e-05,2]
[327224619,1715903624831,2303.3641984,9.999e-05,2]
[327224621,1715904091820,2082.02413978,9.999e-05,2]
[327224622,1715904118835,227.32835181,9.999e-05,2]
[327224623,1715904123164,16108.00888911,9.999e-05,2]
[327224624,1715904124913,880.22323369,9.999e-05,2]
[327224626,1715904171905,2084.90379946,9.999e-05,2]
[327224627,1715904187826,2084.90379946,9.999e-05,2]
[327224628,1715904227800,2086.67556332,9.999e-05,2]
[327224629,1715904245832,2086.67556332,9.999e-05,2]
[327224630,1715904280328,316.01546853,9.999e-05,2]
[327224631,1715904293813,2081.36027174,9.999e-05,2]
[327224632,1715904313816,2087.76390066,9.999e-05,2]
[327224633,1715904333817,2085.58722598,9.999e-05,2]
[327224634,1715904357922,1296.32342244,9.999e-05,2]
[327224636,1715904551164,-342.02290313,0.00015166,2]
[327224637,1715904551182,-406.20357162,0.00015167,2]
[327224638,1715904551202,-15495.37576609,0.00015168,2]
[327224675,1715904632503,-1086.3237768,0.00015168,2]
[327224679,1715904632515,-2028.89952765,0.00015168,2]
[327224978,1715904640722,-6289.40092946,0.00015168,2]
[327224980,1715904640732,-315.67616677,0.00015433,2]
[327224982,1715904640741,-528.07938257,0.00015434,2]
[327224984,1715904640751,-416.87621729,0.00016189,2]
[327224986,1715904640760,-434.77518099,0.00016432,2]
[327224988,1715904640770,-350.61277918,0.00016433,2]
[327224990,1715904640780,-51211.47837844,0.00016434,2]
[327224992,1715904640789,-5433.05607512,0.00016435,2]
[327224994,1715904640798,-645.34094931,0.00016436,2]
[327224996,1715904640807,-519.84555857,0.00016436,2]
[327224997,1715904640818,-355.25334749,0.00016436,2]
[327224999,1715904640827,-641.86376226,0.00016436,2]
[327225001,1715904640836,-3041.36384109,0.00016436,2]
[327225003,1715904640845,-448.815542,0.00016436,2]
[327225005,1715904640854,-491.58653026,0.00016436,2]
[327225007,1715904640863,-1896.23906673,0.00016436,2]
[327225009,1715904640873,-1042.0,0.00016436,2]
[327225011,1715904640882,-238.60242952,0.00016436,2]
[327225013,1715904640892,-1340.02005625,0.00016436,2]
[327225015,1715904640901,-521.04229526,0.00016436,2]
[327225017,1715904640911,-9968.3122938,0.00016436,2]
[327225019,1715904640920,-1516.20451626,0.00016437,2]
[327225021,1715904640929,-13309.19226981,0.00016438,3]
[327225023,1715904640938,-3192.0041331,0.00016438,3]
[327225025,1715904640947,-403.65381451,0.00016438,2]
[327225027,1715904640957,-500.0,0.00016438,2]
[327225029,1715904640966,-500.0,0.00016438,2]
[327225031,1715904640975,-500.0,0.00016438,2]
[327225033,1715904640985,-500.0,0.00016438,2]
[327225035,1715904640993,-500.0,0.00016438,2]
[327225037,1715904641002,-500.0,0.00016438,2]
[327225039,1715904641011,-500.0,0.00016438,2]
[327225041,1715904641021,-500.0,0.00016438,2]
[327225043,1715904641030,-500.0,0.00016438,2]
[327225045,1715904641040,-500.0,0.00016438,2]
[327225046,1715904641049,-1422.48,0.00016438,2]
[327225048,1715904641058,-500.0,0.00016438,2]
[327225050,1715904641069,-585.93,0.00016438,2]
[327225052,1715904641078,-500.0,0.00016438,2]
[327225054,1715904641087,-500.0,0.00016438,2]
[327225056,1715904641096,-151.0,0.00016438,2]
[327225058,1715904641105,-538.79,0.00016438,2]
[327225060,1715904641114,-667.06,0.00016438,2]
[327225062,1715904641123,-500.0,0.00016438,2]
[327225064,1715904641132,-500.0,0.00016438,2]
[327225066,1715904641141,-249.42910407,0.00016438,2]
[327225068,1715904641150,-500.0,0.00016438,2]
[327225070,1715904641159,-1088.53,0.00016438,2]
[327225072,1715904641169,-825.96,0.00016438,2]
[327225074,1715904641178,-500.0,0.00016438,2]
[327225076,1715904641187,-541.43,0.00016438,2]
[327225078,1715904641196,-500.0,0.00016438,2]
[327225080,1715904641205,-983.3,0.00016438,2]
[327225082,1715904641214,-500.0,0.00016438,2]
[327225083,1715904641223,-500.0,0.00016438,2]
[327225085,1715904641233,-500.0,0.00016438,2]
[327225087,1715904641242,-500.0,0.00016438,2]
[327225089,1715904641251,-500.0,0.00016438,2]
[327225091,1715904641260,-500.0,0.00016438,2]
[327225093,1715904641274,-606.0,0.00016438,2]
[327225095,1715904641282,-500.0,0.00016438,2]
[327225097,1715904641292,-500.0,0.00016438,2]
[327225099,1715904641301,-735.81,0.00016438,2]
[327225101,1715904641310,-500.0,0.00016438,2]
[327225103,1715904641322,-500.0,0.00016438,2]
[327225105,1715904641331,-910.39,0.00016438,2]
[327225107,1715904641340,-500.0,0.00016438,2]
[327225109,1715904641350,-1449.86,0.00016438,2]
[327225111,1715904641359,-500.0,0.00016438,2]
[327225113,1715904641369,-500.0,0.00016438,2]
[327225115,1715904641378,-500.0,0.00016438,2]
[327225117,1715904641388,-512.59,0.00016438,2]
[327225119,1715904641397,-627.87,0.00016438,2]
[327225121,1715904641406,-500.0,0.00016438,2]
[327225123,1715904641415,-500.0,0.00016438,2]
[327225125,1715904641424,-911.33,0.00016438,2]
[327225127,1715904641433,-542.38494338,0.00016438,2]
[327225129,1715904641442,-500.0,0.00016438,2]
[327225131,1715904641451,-500.0,0.00016438,2]
[327225133,1715904641460,-650.44,0.00016438,2]
[327225135,1715904641470,-652.11,0.00016438,2]
[327225137,1715904641479,-500.0,0.00016438,2]
[327225139,1715904641488,-1072.78,0.00016438,2]
[327225141,1715904641497,-500.0,0.00016438,2]
[327225143,1715904641506,-500.0,0.00016438,2]
[327225145,1715904641515,-594.15,0.00016438,2]
[327225147,1715904641524,-500.0,0.00016438,2]
[327225149,1715904641534,-500.0,0.00016438,2]